[Event "*** Titled Tuesday Blitz"]
[Site "Chess.com"]
[Date "2021.03.30"]
[Round "8"]
[White "Cambek64"]
[Black "Bigfish1995"]
[Result "1/2-1/2"]
[WhiteElo "2488"]
[BlackElo "2987"]
[TimeControl "180+1"]
[EndTime "11:27:57 PDT"]
[Termination "Game drawn by repetition"]

1. d4 {[%clk 0:02:58.3]} 1... b5 {[%clk 0:02:58.1]} 2. a4 {[%clk 0:02:50.8]}
2... b4 {[%clk 0:02:57.3]} 3. Nf3 {[%clk 0:02:48.1]} 3... Bb7 {[%clk 0:02:57.2]}
4. e3 {[%clk 0:02:48.6]} 4... Nf6 {[%clk 0:02:55.5]} 5. Be2 {[%clk 0:02:47.5]}
5... c5 {[%clk 0:02:46.6]} 6. O-O {[%clk 0:02:47.4]} 6... e6 {[%clk 0:02:45.7]}
7. c4 {[%clk 0:02:37.3]} 7... a5 {[%clk 0:02:32.9]} 8. b3 {[%clk 0:02:32.7]}
8... Be7 {[%clk 0:02:31.5]} 9. Bb2 {[%clk 0:02:33.2]} 9... O-O {[%clk
0:02:31.2]} 10. Nbd2 {[%clk 0:02:33.7]} 10... Na6 {[%clk 0:02:29.1]} 11. Rc1
{[%clk 0:02:34.1]} 11... d6 {[%clk 0:02:26.8]} 12. Bd3 {[%clk 0:02:34.1]} 12...
Qc7 {[%clk 0:02:23]} 13. Qe2 {[%clk 0:02:32.4]} 13... Rae8 {[%clk 0:02:19.4]}
14. Rfd1 {[%clk 0:02:32.9]} 14... Kh8 {[%clk 0:02:14.2]} 15. Bb1 {[%clk
0:02:28.1]} 15... Ba8 {[%clk 0:02:14.1]} 16. Qd3 {[%clk 0:02:28.1]} 16... Bb7
{[%clk 0:02:13.5]} 17. d5 {[%clk 0:02:21.9]} 17... e5 {[%clk 0:02:12.2]} 18. Ne4
{[%clk 0:02:12.8]} 18... Nxe4 {[%clk 0:02:11.2]} 19. Qxe4 {[%clk 0:02:13.4]}
19... f5 {[%clk 0:02:11.6]} 20. Qc2 {[%clk 0:02:13]} 20... Bc8 {[%clk
0:02:11.4]} 21. Nd2 {[%clk 0:02:09.5]} 21... Bf6 {[%clk 0:02:09.2]} 22. f4
{[%clk 0:02:08.9]} 22... exf4 {[%clk 0:02:05]} 23. exf4 {[%clk 0:02:07]} 23...
Re2 {[%clk 0:01:48.6]} 24. Bxf6 {[%clk 0:02:05.8]} 24... gxf6 {[%clk 0:01:39.2]}
25. Re1 {[%clk 0:02:05.2]} 25... Rfe8 {[%clk 0:01:29.3]} 26. Nf3 {[%clk
0:02:03.3]} 26... Rxe1+ {[%clk 0:01:04.3]} 27. Rxe1 {[%clk 0:02:02.4]} 27...
Rxe1+ {[%clk 0:01:05.2]} 28. Nxe1 {[%clk 0:02:02.2]} 28... Qe7 {[%clk
0:01:05.7]} 29. Kf2 {[%clk 0:01:58.9]} 29... Nc7 {[%clk 0:01:04.8]} 30. Qe2
{[%clk 0:01:57.4]} 30... Qf8 {[%clk 0:01:04.5]} 31. Nf3 {[%clk 0:01:48.1]} 31...
Ne8 {[%clk 0:01:04.2]} 32. g3 {[%clk 0:01:47.4]} 32... Ng7 {[%clk 0:01:03.9]}
33. Nh4 {[%clk 0:01:47.7]} 33... Bd7 {[%clk 0:01:03.9]} 34. Qe3 {[%clk
0:01:47.2]} 34... Qf7 {[%clk 0:01:03.4]} 35. Bc2 {[%clk 0:01:43.7]} 35... Kg8
{[%clk 0:01:02.1]} 36. Bd3 {[%clk 0:01:42.2]} 36... Kf8 {[%clk 0:01:01.1]} 37.
Qe2 {[%clk 0:01:42.7]} 37... Bc8 {[%clk 0:00:56.5]} 38. Qc2 {[%clk 0:01:43.1]}
38... Qh5 {[%clk 0:00:53.8]} 39. Qe2 {[%clk 0:01:41.9]} 39... Qh6 {[%clk
0:00:53.4]} 40. Qc2 {[%clk 0:01:41.7]} 40... Bd7 {[%clk 0:00:52]} 41. Kg2 {[%clk
0:01:39.3]} 41... Qh5 {[%clk 0:00:51.4]} 42. Qe2 {[%clk 0:01:38.4]} 42... Qg4
{[%clk 0:00:41.1]} 43. h3 {[%clk 0:01:20.1]} 43... Qxe2+ {[%clk 0:00:35.9]} 44.
Bxe2 {[%clk 0:01:20.5]} 44... Kf7 {[%clk 0:00:28.2]} 45. Bd3 {[%clk 0:01:20.8]}
45... h5 {[%clk 0:00:27.6]} 46. Kf2 {[%clk 0:01:21.1]} 46... Bc8 {[%clk
0:00:27.1]} 47. Ke3 {[%clk 0:01:21]} 47... Bd7 {[%clk 0:00:27.8]} 48. Kf2 {[%clk
0:01:20.9]} 48... Bc8 {[%clk 0:00:28.4]} 49. Ke3 {[%clk 0:01:21.1]} 49... Bd7
{[%clk 0:00:28.9]} 50. Kf2 {[%clk 0:01:21.1]} 1/2-1/2

[Event "*** Titled Tuesday Blitz"]
[Site "Chess.com"]
[Date "2021.03.30"]
[Round "8"]
[White "LEGENYA1998"]
[Black "mr65"]
[Result "0-1"]
[WhiteElo "2233"]
[BlackElo "2109"]
[TimeControl "180+1"]
[EndTime "11:27:57 PDT"]
[Termination "mr65 won by resignation"]

1. e4 {[%clk 0:03:00.9]} 1... e5 {[%clk 0:02:58.2]} 2. Nf3 {[%clk 0:03:00.6]}
2... Nc6 {[%clk 0:02:58]} 3. Bb5 {[%clk 0:02:58.5]} 3... a6 {[%clk 0:02:57.5]}
4. Ba4 {[%clk 0:02:58.3]} 4... Nf6 {[%clk 0:02:56.7]} 5. O-O {[%clk 0:02:57.1]}
5... Be7 {[%clk 0:02:55.3]} 6. Bxc6 {[%clk 0:02:56.4]} 6... dxc6 {[%clk
0:02:54.5]} 7. Nxe5 {[%clk 0:02:49.6]} 7... Nxe4 {[%clk 0:02:53.9]} 8. d3 {[%clk
0:02:48.6]} 8... Nf6 {[%clk 0:02:53.3]} 9. Nc3 {[%clk 0:02:47.8]} 9... O-O
{[%clk 0:02:52.4]} 10. h3 {[%clk 0:02:47.2]} 10... h6 {[%clk 0:02:43.9]} 11. Qf3
{[%clk 0:02:44.8]} 11... Re8 {[%clk 0:02:42.3]} 12. Bf4 {[%clk 0:02:43.5]} 12...
Be6 {[%clk 0:02:31.9]} 13. Rae1 {[%clk 0:02:43.1]} 13... Nd5 {[%clk 0:02:29.5]}
14. Bg3 {[%clk 0:02:37.8]} 14... Nxc3 {[%clk 0:02:26.2]} 15. bxc3 {[%clk
0:02:37.6]} 15... Bd5 {[%clk 0:02:22.6]} 16. Qg4 {[%clk 0:02:36.4]} 16... Bf6
{[%clk 0:02:20.8]} 17. c4 {[%clk 0:02:35.6]} 17... Be6 {[%clk 0:02:19.9]} 18.
Qf3 {[%clk 0:02:35.8]} 18... Bh4 {[%clk 0:02:01.8]} 19. Qf4 {[%clk 0:02:30.8]}
19... Bxg3 {[%clk 0:01:59.7]} 20. Qxg3 {[%clk 0:02:30.7]} 20... Qd6 {[%clk
0:01:54.9]} 21. f4 {[%clk 0:02:29.2]} 21... Bf5 {[%clk 0:01:51.1]} 22. Qf2
{[%clk 0:02:23.6]} 22... f6 {[%clk 0:01:46.3]} 23. Ng4 {[%clk 0:02:21.4]} 23...
Bxg4 {[%clk 0:01:44]} 24. hxg4 {[%clk 0:02:21.7]} 24... Qd7 {[%clk 0:01:43.8]}
25. Qg3 {[%clk 0:02:16.5]} 25... Rxe1 {[%clk 0:01:42]} 26. Rxe1 {[%clk
0:02:15.9]} 26... Re8 {[%clk 0:01:41.6]} 27. Rxe8+ {[%clk 0:02:15.2]} 27... Qxe8
{[%clk 0:01:41.4]} 28. g5 {[%clk 0:02:16.1]} 28... hxg5 {[%clk 0:01:38.5]} 29.
fxg5 {[%clk 0:02:15.9]} 29... Qe5 {[%clk 0:01:29.1]} 30. Qxe5 {[%clk 0:01:48.1]}
30... fxe5 {[%clk 0:01:28.1]} 31. Kf2 {[%clk 0:01:47.9]} 31... Kf7 {[%clk
0:01:28]} 32. Ke3 {[%clk 0:01:48]} 32... Ke6 {[%clk 0:01:19.7]} 33. Ke4 {[%clk
0:01:46]} 33... g6 {[%clk 0:01:18.7]} 34. c3 {[%clk 0:01:45.8]} 34... c5 {[%clk
0:01:17.5]} 35. a3 {[%clk 0:01:44.9]} 35... a5 {[%clk 0:01:14.2]} 36. a4 {[%clk
0:01:43]} 36... c6 {[%clk 0:00:58.3]} 37. g4 {[%clk 0:01:43]} 37... b5 {[%clk
0:00:39.5]} 38. axb5 {[%clk 0:01:12.1]} 38... a4 {[%clk 0:00:29.3]} 39. b6
{[%clk 0:00:59.3]} 39... Kd7 {[%clk 0:00:27.7]} 40. Ke3 {[%clk 0:00:59.5]} 40...
a3 {[%clk 0:00:26.8]} 0-1

[Event "*** Titled Tuesday Blitz"]
[Site "Chess.com"]
[Date "2021.03.30"]
[Round "8"]
[White "anon102030"]
[Black "Artyom_ChessMate"]
[Result "1-0"]
[WhiteElo "2743"]
[BlackElo "2558"]
[TimeControl "180+1"]
[EndTime "11:28:04 PDT"]
[Termination "anon102030 won by resignation"]

1. e4 {[%clk 0:03:00.9]} 1... c5 {[%clk 0:02:59.4]} 2. Nc3 {[%clk 0:03:01]} 2...
Nc6 {[%clk 0:02:58.3]} 3. g3 {[%clk 0:03:01.9]} 3... g6 {[%clk 0:02:58.3]} 4.
Bg2 {[%clk 0:03:02.8]} 4... Bg7 {[%clk 0:02:59.2]} 5. d3 {[%clk 0:03:02.7]} 5...
d6 {[%clk 0:02:59.8]} 6. Be3 {[%clk 0:03:01.9]} 6... Nf6 {[%clk 0:02:58.6]} 7.
h3 {[%clk 0:02:59.5]} 7... h5 {[%clk 0:02:56.2]} 8. f4 {[%clk 0:02:58.7]} 8...
Nd4 {[%clk 0:02:56]} 9. Qd2 {[%clk 0:02:57.2]} 9... Rb8 {[%clk 0:02:55.3]} 10.
Nd1 {[%clk 0:02:56.2]} 10... b5 {[%clk 0:02:55.1]} 11. c3 {[%clk 0:02:56]} 11...
Ne6 {[%clk 0:02:52.8]} 12. Nf3 {[%clk 0:02:49.6]} 12... Bb7 {[%clk 0:02:50.2]}
13. O-O {[%clk 0:02:48.5]} 13... Qc7 {[%clk 0:02:31.3]} 14. Nf2 {[%clk
0:02:40.7]} 14... a5 {[%clk 0:02:29.2]} 15. Rad1 {[%clk 0:02:39.9]} 15... c4
{[%clk 0:02:27.1]} 16. Nh4 {[%clk 0:02:33.9]} 16... cxd3 {[%clk 0:02:24.6]} 17.
Qxd3 {[%clk 0:02:31.4]} 17... Nc5 {[%clk 0:02:07.7]} 18. Qc2 {[%clk 0:02:04.9]}
18... Nfd7 {[%clk 0:01:37.8]} 19. f5 {[%clk 0:02:04.7]} 19... Ne5 {[%clk
0:01:36.5]} 20. fxg6 {[%clk 0:02:01.3]} 20... fxg6 {[%clk 0:01:37.4]} 21. Bd4
{[%clk 0:02:00.6]} 21... Ncd7 {[%clk 0:01:34.1]} 22. Nxg6 {[%clk 0:01:51.8]}
22... Rh6 {[%clk 0:01:26.6]} 23. Nxe5 {[%clk 0:01:44.7]} 23... Nxe5 {[%clk
0:01:27.5]} 24. Nd3 {[%clk 0:01:36.5]} 24... Rg6 {[%clk 0:01:26.1]} 25. Qf2
{[%clk 0:01:30.8]} 25... Rf6 {[%clk 0:01:17.2]} 26. Qe2 {[%clk 0:01:30.6]} 26...
Rh6 {[%clk 0:01:04.8]} 27. Rf5 {[%clk 0:01:19.1]} 27... h4 {[%clk 0:00:52.9]}
28. g4 {[%clk 0:01:03.7]} 28... Qc4 {[%clk 0:00:47.4]} 29. b3 {[%clk 0:01:00.3]}
29... Qe6 {[%clk 0:00:30.5]} 30. g5 {[%clk 0:01:00.5]} 30... Rg6 {[%clk
0:00:25.4]} 31. Nf4 {[%clk 0:00:59]} 31... Qg8 {[%clk 0:00:16.8]} 32. Nxg6
{[%clk 0:00:55.4]} 32... Nxg6 {[%clk 0:00:17.7]} 33. Qxb5+ {[%clk 0:00:46.2]}
33... Kd8 {[%clk 0:00:17.7]} 34. Bb6+ {[%clk 0:00:44.8]} 34... Kc8 {[%clk
0:00:17.5]} 35. Rc5+ {[%clk 0:00:45.3]} 1-0

[Event "*** Titled Tuesday Blitz"]
[Site "Chess.com"]
[Date "2021.03.30"]
[Round "8"]
[White "Maddie"]
[Black "stepakyedael"]
[Result "1-0"]
[WhiteElo "2069"]
[BlackElo "2253"]
[TimeControl "180+1"]
[EndTime "11:28:06 PDT"]
[Termination "Maddie won on time"]

1. d4 {[%clk 0:02:57]} 1... Nf6 {[%clk 0:02:39.8]} 2. e3 {[%clk 0:02:53.6]} 2...
g6 {[%clk 0:02:39.5]} 3. Bd3 {[%clk 0:02:54.1]} 3... Bg7 {[%clk 0:02:39.6]} 4.
f4 {[%clk 0:02:55]} 4... O-O {[%clk 0:02:39.4]} 5. Nf3 {[%clk 0:02:55.9]} 5...
d6 {[%clk 0:02:39.7]} 6. O-O {[%clk 0:02:56.8]} 6... Nbd7 {[%clk 0:02:39.5]} 7.
c3 {[%clk 0:02:56.5]} 7... b6 {[%clk 0:02:39.4]} 8. Nbd2 {[%clk 0:02:56.1]} 8...
Bb7 {[%clk 0:02:39.4]} 9. Qe1 {[%clk 0:02:54.7]} 9... Qe8 {[%clk 0:02:34.5]} 10.
e4 {[%clk 0:02:54.7]} 10... e5 {[%clk 0:02:34]} 11. fxe5 {[%clk 0:02:52.4]}
11... dxe5 {[%clk 0:02:33.4]} 12. d5 {[%clk 0:02:51.1]} 12... Nh5 {[%clk
0:02:26.1]} 13. Bc4 {[%clk 0:02:39.7]} 13... Qe7 {[%clk 0:02:19.6]} 14. Bb3
{[%clk 0:02:35.7]} 14... Nc5 {[%clk 0:02:16]} 15. Bc2 {[%clk 0:02:33.1]} 15...
Nf4 {[%clk 0:02:15.9]} 16. Nb3 {[%clk 0:02:29.8]} 16... Ncd3 {[%clk 0:02:05.4]}
17. Bxd3 {[%clk 0:02:25]} 17... Nxd3 {[%clk 0:02:03.5]} 18. Qe2 {[%clk
0:02:23.7]} 18... Nxc1 {[%clk 0:02:02.9]} 19. Raxc1 {[%clk 0:02:22]} 19... a5
{[%clk 0:02:00]} 20. Nbd2 {[%clk 0:02:21.5]} 20... b5 {[%clk 0:01:56.1]} 21. c4
{[%clk 0:02:17.3]} 21... b4 {[%clk 0:01:52.8]} 22. b3 {[%clk 0:02:16.4]} 22...
c5 {[%clk 0:01:47.3]} 23. Rfd1 {[%clk 0:02:10.8]} 23... Ra6 {[%clk 0:01:39.4]}
24. Nf1 {[%clk 0:02:09.8]} 24... Rd6 {[%clk 0:01:33.7]} 25. Ne3 {[%clk
0:02:09.3]} 25... a4 {[%clk 0:01:29.4]} 26. Ng4 {[%clk 0:02:02.2]} 26... h5
{[%clk 0:01:10.1]} 27. Nf2 {[%clk 0:02:01.1]} 27... Bh6 {[%clk 0:01:07.1]} 28.
Rc2 {[%clk 0:01:56]} 28... axb3 {[%clk 0:01:05.5]} 29. axb3 {[%clk 0:01:56.3]}
29... Ra8 {[%clk 0:01:05.2]} 30. Nd3 {[%clk 0:01:56.5]} 30... Bg7 {[%clk
0:00:56.3]} 31. Nxc5 {[%clk 0:01:53.3]} 31... Bc8 {[%clk 0:00:55.6]} 32. Nd3
{[%clk 0:01:50.3]} 32... g5 {[%clk 0:00:47.7]} 33. c5 {[%clk 0:01:46.1]} 33...
Rda6 {[%clk 0:00:46.9]} 34. d6 {[%clk 0:01:45.2]} 34... Qe6 {[%clk 0:00:42.8]}
35. Nxb4 {[%clk 0:01:43.4]} 35... Ra3 {[%clk 0:00:38.2]} 36. c6 {[%clk
0:01:41.8]} 36... Qxb3 {[%clk 0:00:34.5]} 37. Nd5 {[%clk 0:01:38.3]} 37... Ba6
{[%clk 0:00:25.9]} 38. Qf2 {[%clk 0:01:22.9]} 38... Bd3 {[%clk 0:00:20.3]} 39.
Rcd2 {[%clk 0:01:16.5]} 39... Ra1 {[%clk 0:00:14.6]} 40. Qe1 {[%clk 0:01:12.7]}
1-0

[Event "*** Titled Tuesday Blitz"]
[Site "Chess.com"]
[Date "2021.03.30"]
[Round "8"]
[White "BilodeauA"]
[Black "DeTimmerman"]
[Result "1-0"]
[WhiteElo "2918"]
[BlackElo "2749"]
[TimeControl "180+1"]
[EndTime "11:28:09 PDT"]
[Termination "BilodeauA won by checkmate"]

1. d4 {[%clk 0:03:00.9]} 1... Nf6 {[%clk 0:02:58.9]} 2. Nc3 {[%clk 0:03:01.1]}
2... d5 {[%clk 0:02:52.3]} 3. Bf4 {[%clk 0:02:58.4]} 3... e6 {[%clk 0:02:52.3]}
4. Nb5 {[%clk 0:02:55.2]} 4... Bd6 {[%clk 0:02:48]} 5. Nxd6+ {[%clk 0:02:54.8]}
5... cxd6 {[%clk 0:02:48.9]} 6. e3 {[%clk 0:02:55.2]} 6... O-O {[%clk
0:02:48.5]} 7. h3 {[%clk 0:02:55.9]} 7... Nc6 {[%clk 0:02:48.7]} 8. Nf3 {[%clk
0:02:56.6]} 8... h6 {[%clk 0:02:48.4]} 9. Bh2 {[%clk 0:02:54.5]} 9... Re8 {[%clk
0:02:47.9]} 10. Be2 {[%clk 0:02:53.6]} 10... e5 {[%clk 0:02:39.5]} 11. O-O
{[%clk 0:02:53.2]} 11... Bf5 {[%clk 0:02:37.3]} 12. Bb5 {[%clk 0:02:53.1]} 12...
Be4 {[%clk 0:02:31.3]} 13. dxe5 {[%clk 0:02:36.8]} 13... Bxf3 {[%clk 0:02:31.3]}
14. Qxf3 {[%clk 0:02:36.4]} 14... dxe5 {[%clk 0:02:31.9]} 15. c4 {[%clk
0:02:33.1]} 15... e4 {[%clk 0:02:12.4]} 16. Qe2 {[%clk 0:02:30]} 16... a6 {[%clk
0:02:07.9]} 17. Ba4 {[%clk 0:02:28.7]} 17... dxc4 {[%clk 0:02:07.9]} 18. Qxc4
{[%clk 0:02:26.4]} 18... Rc8 {[%clk 0:02:03.8]} 19. Bb3 {[%clk 0:02:18.6]} 19...
Ne5 {[%clk 0:01:58.6]} 20. Qb4 {[%clk 0:02:10.1]} 20... b5 {[%clk 0:01:55.5]}
21. Bxe5 {[%clk 0:02:03.7]} 21... Rxe5 {[%clk 0:01:55]} 22. Rfd1 {[%clk
0:02:04.5]} 22... Qc7 {[%clk 0:01:41.3]} 23. a3 {[%clk 0:01:52.6]} 23... Rc5
{[%clk 0:01:29.5]} 24. Qd4 {[%clk 0:01:47.6]} 24... Qe7 {[%clk 0:01:29.1]} 25.
Qd6 {[%clk 0:01:45.3]} 25... Qxd6 {[%clk 0:01:20.5]} 26. Rxd6 {[%clk 0:01:46.2]}
26... R5c6 {[%clk 0:01:16]} 27. Rad1 {[%clk 0:01:43.6]} 27... Rxd6 {[%clk
0:01:05.2]} 28. Rxd6 {[%clk 0:01:43.2]} 28... Rc1+ {[%clk 0:01:06.1]} 29. Kh2
{[%clk 0:01:43.6]} 29... Rb1 {[%clk 0:01:05.8]} 30. Rd8+ {[%clk 0:01:43.2]}
30... Kh7 {[%clk 0:01:06.3]} 31. Bxf7 {[%clk 0:01:43.8]} 31... Rxb2 {[%clk
0:01:06.3]} 32. Kg3 {[%clk 0:01:44.5]} 32... h5 {[%clk 0:00:52.7]} 33. h4 {[%clk
0:01:34.7]} 33... g6 {[%clk 0:00:25.3]} 34. Be6 {[%clk 0:01:22.6]} 34... a5
{[%clk 0:00:20.5]} 35. Ra8 {[%clk 0:01:22.9]} 35... b4 {[%clk 0:00:20.1]} 36.
Rxa5 {[%clk 0:01:22.7]} 36... bxa3 {[%clk 0:00:18.8]} 37. Rxa3 {[%clk
0:01:23.6]} 37... Kg7 {[%clk 0:00:15.9]} 38. Ra7+ {[%clk 0:01:23.3]} 38... Kh6
{[%clk 0:00:15.7]} 39. Rf7 {[%clk 0:01:22.8]} 39... Nh7 {[%clk 0:00:15.7]} 40.
Bd5 {[%clk 0:01:20.3]} 40... Rb4 {[%clk 0:00:15.7]} 41. Kf4 {[%clk 0:01:13.2]}
41... g5+ {[%clk 0:00:08.5]} 42. hxg5+ {[%clk 0:01:13.1]} 42... Kg6 {[%clk
0:00:09.4]} 43. Ra7 {[%clk 0:01:09.4]} 43... Rb6 {[%clk 0:00:07.4]} 44. Bxe4#
{[%clk 0:01:09]} 1-0

[Event "*** Titled Tuesday Blitz"]
[Site "Chess.com"]
[Date "2021.03.30"]
[Round "8"]
[White "Kretov_Evgenij"]
[Black "Manukyan_Artak"]
[Result "1-0"]
[WhiteElo "2571"]
[BlackElo "2467"]
[TimeControl "180+1"]
[EndTime "11:28:10 PDT"]
[Termination "Kretov_Evgenij won by resignation"]

1. d4 {[%clk 0:03:00.9]} 1... Nf6 {[%clk 0:02:58]} 2. c4 {[%clk 0:03:00.1]} 2...
g6 {[%clk 0:02:56.9]} 3. Nc3 {[%clk 0:03:00.3]} 3... Bg7 {[%clk 0:02:57.1]} 4.
e4 {[%clk 0:03:00.7]} 4... O-O {[%clk 0:02:57.7]} 5. Be2 {[%clk 0:03:01.1]} 5...
d6 {[%clk 0:02:57.8]} 6. Bg5 {[%clk 0:03:01.2]} 6... c5 {[%clk 0:02:57.4]} 7. d5
{[%clk 0:03:00.7]} 7... Qa5 {[%clk 0:02:57.3]} 8. Bd2 {[%clk 0:02:59.7]} 8...
Qc7 {[%clk 0:02:53.1]} 9. Nf3 {[%clk 0:02:58.1]} 9... e5 {[%clk 0:02:53]} 10.
O-O {[%clk 0:02:57.7]} 10... h5 {[%clk 0:02:49.4]} 11. a3 {[%clk 0:02:54]} 11...
a5 {[%clk 0:02:48.2]} 12. Nb5 {[%clk 0:02:51.8]} 12... Qd8 {[%clk 0:02:47.8]}
13. Qc2 {[%clk 0:02:50.7]} 13... Na6 {[%clk 0:02:45.6]} 14. Rfb1 {[%clk
0:02:46.4]} 14... Kh7 {[%clk 0:02:43.5]} 15. Ne1 {[%clk 0:02:44.7]} 15... Ne8
{[%clk 0:02:40.5]} 16. Nd3 {[%clk 0:02:41.2]} 16... Bh6 {[%clk 0:02:36]} 17.
Bxh6 {[%clk 0:02:38.1]} 17... Kxh6 {[%clk 0:02:36.2]} 18. b4 {[%clk 0:02:38.3]}
18... b6 {[%clk 0:02:29.8]} 19. bxc5 {[%clk 0:02:35.6]} 19... Nxc5 {[%clk
0:02:29.2]} 20. Nxc5 {[%clk 0:02:34.1]} 20... bxc5 {[%clk 0:02:29.2]} 21. Nc3
{[%clk 0:02:28.4]} 21... f5 {[%clk 0:02:28]} 22. Qb3 {[%clk 0:02:25.5]} 22...
fxe4 {[%clk 0:02:21.5]} 23. Nxe4 {[%clk 0:02:23.1]} 23... Bf5 {[%clk 0:02:20.2]}
24. Qe3+ {[%clk 0:02:22.7]} 24... g5 {[%clk 0:02:17.2]} 25. h4 {[%clk 0:02:10]}
25... Bxe4 {[%clk 0:02:16.8]} 26. Qxe4 {[%clk 0:02:07]} 26... Qf6 {[%clk
0:02:12.5]} 27. hxg5+ {[%clk 0:02:05.9]} 27... Qxg5 {[%clk 0:02:11.3]} 28. Rb6
{[%clk 0:02:00.6]} 28... Qf4 {[%clk 0:02:06.5]} 29. Qe3 {[%clk 0:01:46.8]} 29...
Qxe3 {[%clk 0:02:02.7]} 30. fxe3 {[%clk 0:01:47]} 30... Rf6 {[%clk 0:02:00.3]}
31. Rab1 {[%clk 0:01:42.6]} 31... Ng7 {[%clk 0:01:59.8]} 32. Bd3 {[%clk
0:01:39.8]} 32... h4 {[%clk 0:01:56]} 33. Rf1 {[%clk 0:01:33.2]} 33... Rxf1+
{[%clk 0:01:44.5]} 34. Kxf1 {[%clk 0:01:33]} 34... Rf8+ {[%clk 0:01:42.7]} 35.
Ke1 {[%clk 0:01:31.1]} 35... Rf6 {[%clk 0:01:42.7]} 36. Ra6 {[%clk 0:01:30.7]}
36... Kg5 {[%clk 0:01:36.5]} 37. Rxa5 {[%clk 0:01:30]} 37... Kg4 {[%clk
0:01:35.9]} 38. Ra7 {[%clk 0:01:27.6]} 38... Nh5 {[%clk 0:01:35.7]} 39. Be2+
{[%clk 0:01:25.2]} 39... Kg5 {[%clk 0:01:35.6]} 40. Rh7 {[%clk 0:01:22.2]} 40...
Ng3 {[%clk 0:01:33.9]} 41. a4 {[%clk 0:01:06.3]} 41... Rf8 {[%clk 0:01:25.4]}
42. Rd7 {[%clk 0:01:00.7]} 42... Ra8 {[%clk 0:01:23]} 43. Bd1 {[%clk 0:00:59.9]}
43... Nf5 {[%clk 0:01:20.6]} 44. Kd2 {[%clk 0:00:58.4]} 44... Rb8 {[%clk
0:01:15.4]} 45. Bc2 {[%clk 0:00:57.6]} 45... Rb2 {[%clk 0:01:13.2]} 46. Kc1
{[%clk 0:00:57.5]} 46... Ra2 {[%clk 0:01:12.5]} 47. Kb1 {[%clk 0:00:52.9]} 47...
Ra3 {[%clk 0:01:11.6]} 48. Kb2 {[%clk 0:00:53.2]} 48... Rxe3 {[%clk 0:01:10.6]}
49. a5 {[%clk 0:00:53.4]} 49... Re2 {[%clk 0:01:09.3]} 50. a6 {[%clk 0:00:52.3]}
50... Ne3 {[%clk 0:01:09.4]} 51. a7 {[%clk 0:00:51.8]} 51... Rxc2+ {[%clk
0:01:09.4]} 52. Kb1 {[%clk 0:00:51.8]} 1-0

[Event "*** Titled Tuesday Blitz"]
[Site "Chess.com"]
[Date "2021.03.30"]
[Round "8"]
[White "Pikachess999"]
[Black "zurzan"]
[Result "1-0"]
[WhiteElo "2360"]
[BlackElo "1980"]
[TimeControl "180+1"]
[EndTime "11:28:10 PDT"]
[Termination "Pikachess999 won on time"]

1. e4 {[%clk 0:03:00.9]} 1... Nf6 {[%clk 0:02:59.3]} 2. e5 {[%clk 0:03:01.1]}
2... Nd5 {[%clk 0:02:59.3]} 3. d4 {[%clk 0:03:01.7]} 3... d6 {[%clk 0:02:59.2]}
4. c4 {[%clk 0:03:02.1]} 4... Nb6 {[%clk 0:02:58.9]} 5. exd6 {[%clk 0:03:03]}
5... cxd6 {[%clk 0:02:59.5]} 6. d5 {[%clk 0:03:00.2]} 6... g6 {[%clk 0:02:54.4]}
7. Qd4 {[%clk 0:02:59.8]} 7... Rg8 {[%clk 0:02:49.3]} 8. Qh4 {[%clk 0:02:59.5]}
8... h6 {[%clk 0:02:47.8]} 9. Nc3 {[%clk 0:02:56.8]} 9... g5 {[%clk 0:02:46.5]}
10. Qe4 {[%clk 0:02:55.7]} 10... f5 {[%clk 0:02:42.6]} 11. Qc2 {[%clk
0:02:49.9]} 11... Na6 {[%clk 0:02:38.8]} 12. a3 {[%clk 0:02:47.5]} 12... Bg7
{[%clk 0:02:24]} 13. Bd3 {[%clk 0:02:46.4]} 13... Rf8 {[%clk 0:02:10.1]} 14. b4
{[%clk 0:02:16.9]} 14... Bd7 {[%clk 0:01:56.7]} 15. Bb2 {[%clk 0:02:14.3]} 15...
Rc8 {[%clk 0:01:49.7]} 16. Qe2 {[%clk 0:02:01.8]} 16... Na4 {[%clk 0:01:32.9]}
17. Nxa4 {[%clk 0:01:59.2]} 17... Bxb2 {[%clk 0:01:27.4]} 18. Nxb2 {[%clk
0:02:00.1]} 18... Rf6 {[%clk 0:00:55.5]} 19. Nf3 {[%clk 0:01:47.4]} 19... e5
{[%clk 0:00:53.1]} 20. Nxe5 {[%clk 0:01:31.5]} 20... dxe5 {[%clk 0:00:51.2]} 21.
Qxe5+ {[%clk 0:01:32.4]} 21... Qe7 {[%clk 0:00:51.5]} 22. Qxe7+ {[%clk
0:01:32.2]} 22... Kxe7 {[%clk 0:00:51.8]} 23. Kd2 {[%clk 0:01:32.3]} 23... f4
{[%clk 0:00:48.1]} 24. Rhe1+ {[%clk 0:01:31.5]} 24... Kf7 {[%clk 0:00:47.9]} 25.
f3 {[%clk 0:01:30.9]} 25... Re8 {[%clk 0:00:46.8]} 26. Rxe8 {[%clk 0:01:30.4]}
26... Kxe8 {[%clk 0:00:47]} 27. Re1+ {[%clk 0:01:30.6]} 27... Kf7 {[%clk
0:00:47.4]} 28. c5 {[%clk 0:01:30.5]} 28... Nc7 {[%clk 0:00:43.7]} 29. Bc4
{[%clk 0:01:27.8]} 29... Kf8 {[%clk 0:00:40.1]} 30. Nd3 {[%clk 0:01:27.4]} 30...
Bf5 {[%clk 0:00:30.8]} 31. Ne5 {[%clk 0:01:23.3]} 31... a6 {[%clk 0:00:21.9]}
32. Kc3 {[%clk 0:01:23.4]} 32... h5 {[%clk 0:00:14]} 33. h3 {[%clk 0:01:17.7]}
33... Kg7 {[%clk 0:00:09.8]} 34. a4 {[%clk 0:01:14]} 34... Kh6 {[%clk
0:00:06.7]} 35. b5 {[%clk 0:01:14]} 35... axb5 {[%clk 0:00:06.6]} 36. axb5
{[%clk 0:01:14.9]} 36... h4 {[%clk 0:00:04.8]} 37. b6 {[%clk 0:01:06]} 37... Ne8
{[%clk 0:00:03.1]} 38. Ng4+ {[%clk 0:01:03]} 38... Bxg4 {[%clk 0:00:02.6]} 39.
Rxe8 {[%clk 0:01:03.3]} 1-0